[Event "*** Titled Tuesday Blitz"]
[Site "Chess.com"]
[Date "2018.05.01"]
[Round "10"]
[White "Fy_Rakotomaharo"]
[Black "nihalsarin"]
[Result "0-1"]
[WhiteElo "2500"]
[BlackElo "2729"]
[TimeControl "180+2"]
[EndTime "15:12:14 PDT"]
[Termination "nihalsarin won by resignation"]

1. e4 {[%clk 0:03:01.9]} 1... c5 {[%clk 0:02:59.8]} 2. Nf3 {[%clk 0:03:03]} 2...
d6 {[%clk 0:03:00.4]} 3. d4 {[%clk 0:03:04.6]} 3... cxd4 {[%clk 0:03:01.6]} 4.
Nxd4 {[%clk 0:03:06.5]} 4... Nf6 {[%clk 0:03:02.9]} 5. Nc3 {[%clk 0:03:08.1]}
5... Nc6 {[%clk 0:03:04.4]} 6. Bc4 {[%clk 0:02:55.7]} 6... Qb6 {[%clk
0:03:02.8]} 7. Nb3 {[%clk 0:02:50.8]} 7... a6 {[%clk 0:02:58.1]} 8. O-O {[%clk
0:02:49.7]} 8... e6 {[%clk 0:02:57]} 9. a4 {[%clk 0:02:49.2]} 9... Qc7 {[%clk
0:02:56.5]} 10. Re1 {[%clk 0:02:40.1]} 10... b6 {[%clk 0:02:51.5]} 11. f4 {[%clk
0:02:28.6]} 11... Be7 {[%clk 0:02:51.6]} 12. f5 {[%clk 0:01:44.2]} 12... Ne5
{[%clk 0:02:49.9]} 13. Bf1 {[%clk 0:01:44.7]} 13... O-O {[%clk 0:02:51.2]} 14.
Bg5 {[%clk 0:01:44.7]} 14... exf5 {[%clk 0:02:47.9]} 15. Bxf6 {[%clk 0:01:24.3]}
15... Bxf6 {[%clk 0:02:49.8]} 16. Nd5 {[%clk 0:01:25.9]} 16... Qd8 {[%clk
0:02:50.4]} 17. a5 {[%clk 0:01:23.1]} 17... bxa5 {[%clk 0:02:45.5]} 18. exf5
{[%clk 0:01:18]} 18... Bxf5 {[%clk 0:02:42.1]} 19. Rxa5 {[%clk 0:01:18.8]} 19...
Be6 {[%clk 0:02:22.7]} 20. Nxf6+ {[%clk 0:01:15.7]} 20... Qxf6 {[%clk
0:02:24.6]} 21. Qxd6 {[%clk 0:01:14.8]} 21... Ng4 {[%clk 0:02:25.9]} 22. Qd4
{[%clk 0:01:10.1]} 22... Qh4 {[%clk 0:02:26.2]} 23. h3 {[%clk 0:00:53.4]} 23...
Qxe1 {[%clk 0:02:24.9]} 24. hxg4 {[%clk 0:00:54.8]} 24... Bxb3 {[%clk
0:02:16.2]} 25. Re5 {[%clk 0:00:55.8]} 25... Rad8 {[%clk 0:02:03.1]} 26. Rxe1
{[%clk 0:00:50.7]} 26... Rxd4 {[%clk 0:02:04.4]} 27. cxb3 {[%clk 0:00:52.3]}
27... a5 {[%clk 0:02:03.1]} 28. Bc4 {[%clk 0:00:47.9]} 28... Rxg4 {[%clk
0:02:04]} 29. Bd5 {[%clk 0:00:42]} 29... g6 {[%clk 0:02:03.7]} 30. Re7 {[%clk
0:00:42.5]} 30... Rd4 {[%clk 0:01:59.7]} 31. Bc6 {[%clk 0:00:42.7]} 31... Kg7
{[%clk 0:01:58.3]} 32. Ra7 {[%clk 0:00:43.3]} 32... Rc8 {[%clk 0:01:59]} 33. Bb5
{[%clk 0:00:42]} 33... Rc1+ {[%clk 0:01:52.7]} 34. Kf2 {[%clk 0:00:37.9]} 34...
Rc2+ {[%clk 0:01:53.3]} 35. Ke3 {[%clk 0:00:38.8]} 35... Rd6 {[%clk 0:01:38.9]}
36. Bc4 {[%clk 0:00:38.2]} 36... Rf6 {[%clk 0:01:40.1]} 37. g4 {[%clk
0:00:33.3]} 37... Rxb2 {[%clk 0:01:34.1]} 38. Rxa5 {[%clk 0:00:29.2]} 38... Rg2
{[%clk 0:01:32.9]} 39. g5 {[%clk 0:00:25.8]} 39... Rf5 {[%clk 0:01:33.6]} 40.
Ra7 {[%clk 0:00:22.1]} 40... Rgxg5 {[%clk 0:01:32.7]} 41. b4 {[%clk 0:00:23.3]}
41... Rg3+ {[%clk 0:01:31]} 42. Kd4 {[%clk 0:00:22.5]} 42... Rg4+ {[%clk
0:01:32]} 43. Kc3 {[%clk 0:00:23.8]} 43... Rf3+ {[%clk 0:01:31.6]} 44. Bd3
{[%clk 0:00:25.1]} 44... Rxd3+ {[%clk 0:01:33]} 0-1

[Event "*** Titled Tuesday Blitz"]
[Site "Chess.com"]
[Date "2018.05.01"]
[Round "10"]
[White "RodinMihail"]
[Black "Last7Samurai"]
[Result "0-1"]
[WhiteElo "2431"]
[BlackElo "2640"]
[TimeControl "180+2"]
[EndTime "15:12:43 PDT"]
[Termination "Last7Samurai won by checkmate"]

1. e4 {[%clk 0:03:01.9]} 1... e6 {[%clk 0:03:00]} 2. d4 {[%clk 0:03:02.3]} 2...
d5 {[%clk 0:03:01]} 3. Nd2 {[%clk 0:03:03.7]} 3... Be7 {[%clk 0:03:01.1]} 4.
Ngf3 {[%clk 0:03:03.1]} 4... Nf6 {[%clk 0:03:01.5]} 5. Bd3 {[%clk 0:03:04.4]}
5... c5 {[%clk 0:03:02]} 6. c3 {[%clk 0:03:06]} 6... cxd4 {[%clk 0:03:01.6]} 7.
cxd4 {[%clk 0:03:07.9]} 7... dxe4 {[%clk 0:03:01.2]} 8. Nxe4 {[%clk 0:03:08.1]}
8... Nc6 {[%clk 0:03:00.6]} 9. O-O {[%clk 0:03:07.8]} 9... O-O {[%clk
0:03:00.8]} 10. Be3 {[%clk 0:03:08.8]} 10... Nd5 {[%clk 0:02:58.5]} 11. Rc1
{[%clk 0:03:07.6]} 11... Re8 {[%clk 0:02:48.8]} 12. a3 {[%clk 0:03:05]} 12...
Bf8 {[%clk 0:02:46.7]} 13. Qe2 {[%clk 0:03:05.8]} 13... g6 {[%clk 0:02:39.9]}
14. Rfd1 {[%clk 0:03:05.2]} 14... Bg7 {[%clk 0:02:40.6]} 15. Bg5 {[%clk
0:02:54.8]} 15... Nce7 {[%clk 0:02:32.7]} 16. Bc4 {[%clk 0:02:41.8]} 16... h6
{[%clk 0:02:23.1]} 17. Be3 {[%clk 0:02:34.3]} 17... Nf5 {[%clk 0:02:21.9]} 18.
Nc5 {[%clk 0:02:32.5]} 18... b6 {[%clk 0:02:20]} 19. Na6 {[%clk 0:02:20.4]}
19... Ndxe3 {[%clk 0:02:12.1]} 20. fxe3 {[%clk 0:02:20.2]} 20... Bb7 {[%clk
0:02:13.7]} 21. Bb5 {[%clk 0:01:40.6]} 21... Re7 {[%clk 0:02:13.8]} 22. Nb4
{[%clk 0:01:41.1]} 22... Rc7 {[%clk 0:02:04.9]} 23. Rxc7 {[%clk 0:01:41.1]}
23... Qxc7 {[%clk 0:02:06.8]} 24. Bd3 {[%clk 0:01:35.4]} 24... a5 {[%clk
0:01:58.7]} 25. Nc2 {[%clk 0:01:32.2]} 25... Rc8 {[%clk 0:01:57.7]} 26. Nce1
{[%clk 0:01:32.9]} 26... Nd6 {[%clk 0:01:54.7]} 27. e4 {[%clk 0:01:30.6]} 27...
b5 {[%clk 0:01:30.6]} 28. e5 {[%clk 0:01:19.5]} 28... Nc4 {[%clk 0:01:18.2]} 29.
a4 {[%clk 0:01:19.9]} 29... Qb6 {[%clk 0:01:11.5]} 30. Kh1 {[%clk 0:01:00.1]}
30... Bd5 {[%clk 0:01:09.8]} 31. axb5 {[%clk 0:00:59.9]} 31... Qxb5 {[%clk
0:01:08.8]} 32. Rc1 {[%clk 0:01:00.6]} 32... Qb4 {[%clk 0:00:55.8]} 33. h3
{[%clk 0:00:35.9]} 33... Nb6 {[%clk 0:00:54.8]} 34. Rxc8+ {[%clk 0:00:35.2]}
34... Nxc8 {[%clk 0:00:56.7]} 35. Qc2 {[%clk 0:00:34.8]} 35... Ne7 {[%clk
0:00:57.3]} 36. Nd2 {[%clk 0:00:35]} 36... Qxd4 {[%clk 0:00:53.8]} 37. Nef3
{[%clk 0:00:36.2]} 37... Qf2 {[%clk 0:00:49.2]} 38. Qc7 {[%clk 0:00:30.6]} 38...
Nf5 {[%clk 0:00:42.7]} 39. Bxf5 {[%clk 0:00:30]} 39... gxf5 {[%clk 0:00:44.6]}
40. Qxa5 {[%clk 0:00:29.1]} 40... Bxe5 {[%clk 0:00:34.2]} 41. Nxe5 {[%clk
0:00:21.2]} 41... Qxg2# {[%clk 0:00:34.3]} 0-1

[Event "*** Titled Tuesday Blitz"]
[Site "Chess.com"]
[Date "2018.05.01"]
[Round "10"]
[White "AndrewMcStone"]
[Black "ghost_of_pushwood"]
[Result "0-1"]
[WhiteElo "2022"]
[BlackElo "1912"]
[TimeControl "180+2"]
[EndTime "15:13:00 PDT"]
[Termination "ghost_of_pushwood won on time"]

1. d4 {[%clk 0:03:01.9]} 1... Nf6 {[%clk 0:02:59.1]} 2. c4 {[%clk 0:02:58.8]}
2... g6 {[%clk 0:02:59.3]} 3. f3 {[%clk 0:02:59.3]} 3... Bg7 {[%clk 0:02:59.4]}
4. e4 {[%clk 0:02:57.1]} 4... d6 {[%clk 0:02:59.7]} 5. Nc3 {[%clk 0:02:57.8]}
5... O-O {[%clk 0:02:59.8]} 6. Be3 {[%clk 0:02:58.1]} 6... c6 {[%clk 0:02:56.7]}
7. Nge2 {[%clk 0:02:48.9]} 7... a6 {[%clk 0:02:57.2]} 8. Qc2 {[%clk 0:02:38.6]}
8... b5 {[%clk 0:02:57]} 9. c5 {[%clk 0:02:23.9]} 9... dxc5 {[%clk 0:02:48.8]}
10. dxc5 {[%clk 0:02:24.1]} 10... e5 {[%clk 0:02:14.3]} 11. Rd1 {[%clk
0:02:16.2]} 11... Qe7 {[%clk 0:02:12.9]} 12. Nc1 {[%clk 0:02:12.1]} 12... Nbd7
{[%clk 0:02:02.9]} 13. b4 {[%clk 0:01:55.9]} 13... a5 {[%clk 0:01:57.4]} 14. a3
{[%clk 0:01:56.7]} 14... axb4 {[%clk 0:01:57.9]} 15. axb4 {[%clk 0:01:58.6]}
15... Ne8 {[%clk 0:01:50.7]} 16. Be2 {[%clk 0:01:43.7]} 16... Nc7 {[%clk
0:01:50]} 17. O-O {[%clk 0:01:41.8]} 17... Ne6 {[%clk 0:01:50.3]} 18. Nb3 {[%clk
0:01:39.5]} 18... Rd8 {[%clk 0:01:35.4]} 19. Rd6 {[%clk 0:01:37.9]} 19... Nd4
{[%clk 0:01:20.7]} 20. Nxd4 {[%clk 0:01:34.2]} 20... exd4 {[%clk 0:01:21.1]} 21.
Bxd4 {[%clk 0:01:35.2]} 21... Bxd4+ {[%clk 0:01:20.9]} 22. Rxd4 {[%clk
0:01:35.6]} 22... Ne5 {[%clk 0:01:20.2]} 23. Rfd1 {[%clk 0:01:21.2]} 23... Be6
{[%clk 0:01:18.4]} 24. Rd6 {[%clk 0:00:43.1]} 24... Bc4 {[%clk 0:01:02]} 25. f4
{[%clk 0:00:26.4]} 25... Bxe2 {[%clk 0:00:59.3]} 26. Nxe2 {[%clk 0:00:11.9]}
26... Nc4 {[%clk 0:00:56.7]} 27. Rxd8+ {[%clk 0:00:07.8]} 27... Rxd8 {[%clk
0:00:55.6]} 28. Rxd8+ {[%clk 0:00:08]} 28... Qxd8 {[%clk 0:00:55.9]} 29. Kf2
{[%clk 0:00:07.9]} 29... Qh4+ {[%clk 0:00:51.5]} 30. Kf3 {[%clk 0:00:05.4]}
30... Qh5+ {[%clk 0:00:44.5]} 31. Kf2 {[%clk 0:00:04.1]} 31... Qh4+ {[%clk
0:00:39]} 32. Kf3 {[%clk 0:00:04.6]} 32... Qxh2 {[%clk 0:00:39.5]} 33. Qd3
{[%clk 0:00:04.4]} 33... Qh5+ {[%clk 0:00:34.8]} 34. Kf2 {[%clk 0:00:04.5]}
34... Qh4+ {[%clk 0:00:31.2]} 35. Ng3 {[%clk 0:00:03.6]} 35... Qxf4+ {[%clk
0:00:30.2]} 36. Kg1 {[%clk 0:00:04.7]} 36... Qc1+ {[%clk 0:00:26.6]} 37. Nf1
{[%clk 0:00:02.5]} 37... Qb2 {[%clk 0:00:24.5]} 38. Qd8+ {[%clk 0:00:02.8]}
38... Kg7 {[%clk 0:00:24.2]} 0-1

[Event "*** Titled Tuesday Blitz"]
[Site "Chess.com"]
[Date "2018.05.01"]
[Round "10"]
[White "Margency"]
[Black "KRASAVCHIK2002"]
[Result "0-1"]
[WhiteElo "2508"]
[BlackElo "2074"]
[TimeControl "180+2"]
[EndTime "15:13:07 PDT"]
[Termination "KRASAVCHIK2002 won by checkmate"]

1. e4 {[%clk 0:03:01.9]} 1... c5 {[%clk 0:02:59.6]} 2. Nf3 {[%clk 0:03:01.8]}
2... d6 {[%clk 0:03:00.8]} 3. d4 {[%clk 0:03:02.3]} 3... cxd4 {[%clk 0:03:01.8]}
4. Nxd4 {[%clk 0:03:03.5]} 4... Nf6 {[%clk 0:03:02.9]} 5. Nc3 {[%clk 0:03:04.2]}
5... a6 {[%clk 0:03:03.7]} 6. g3 {[%clk 0:03:04.7]} 6... e5 {[%clk 0:03:04.4]}
7. Nb3 {[%clk 0:03:05]} 7... Be6 {[%clk 0:03:02.3]} 8. Bg2 {[%clk 0:03:05.5]}
8... Be7 {[%clk 0:03:03]} 9. O-O {[%clk 0:03:06.4]} 9... O-O {[%clk 0:03:04]}
10. Re1 {[%clk 0:03:03.1]} 10... Nbd7 {[%clk 0:03:02.2]} 11. a4 {[%clk 0:03:03]}
11... Rc8 {[%clk 0:03:02.6]} 12. Nd2 {[%clk 0:03:02.4]} 12... Nb6 {[%clk
0:02:58.7]} 13. Nf1 {[%clk 0:02:57.6]} 13... d5 {[%clk 0:02:22.8]} 14. exd5
{[%clk 0:02:50.6]} 14... Nfxd5 {[%clk 0:02:20.2]} 15. Nxd5 {[%clk 0:02:46.9]}
15... Nxd5 {[%clk 0:01:50.8]} 16. Rxe5 {[%clk 0:02:39.8]} 16... Nb4 {[%clk
0:01:45.7]} 17. Qxd8 {[%clk 0:02:36.4]} 17... Rfxd8 {[%clk 0:01:44.3]} 18. c3
{[%clk 0:02:37.5]} 18... Nd3 {[%clk 0:01:39.7]} 19. Re2 {[%clk 0:02:35.5]} 19...
Nxc1 {[%clk 0:01:35.6]} 20. Rxc1 {[%clk 0:02:34.7]} 20... Rc7 {[%clk 0:01:33.7]}
21. Ne3 {[%clk 0:02:25.7]} 21... g6 {[%clk 0:01:23.5]} 22. h4 {[%clk 0:02:21.4]}
22... h5 {[%clk 0:01:20.7]} 23. a5 {[%clk 0:02:15.8]} 23... Kg7 {[%clk
0:01:10.4]} 24. Rcc2 {[%clk 0:02:15]} 24... Rcd7 {[%clk 0:01:07.2]} 25. Bf3
{[%clk 0:02:05.3]} 25... Bb3 {[%clk 0:01:02.9]} 26. Rc1 {[%clk 0:02:05.7]} 26...
Bc5 {[%clk 0:01:03.1]} 27. Rce1 {[%clk 0:02:02.5]} 27... b6 {[%clk 0:00:55.4]}
28. axb6 {[%clk 0:02:02.5]} 28... Bxb6 {[%clk 0:00:55.3]} 29. Kg2 {[%clk
0:01:51.9]} 29... Rd3 {[%clk 0:00:49.9]} 30. Be4 {[%clk 0:01:51.7]} 30... R3d6
{[%clk 0:00:47.7]} 31. Bc2 {[%clk 0:01:51]} 31... Be6 {[%clk 0:00:44.8]} 32. Be4
{[%clk 0:01:48.4]} 32... Bb3 {[%clk 0:00:42.2]} 33. Bc2 {[%clk 0:01:33.7]} 33...
Be6 {[%clk 0:00:39.8]} 34. b3 {[%clk 0:01:35.2]} 34... Rd2 {[%clk 0:00:32.8]}
35. Rxd2 {[%clk 0:01:19.5]} 35... Rxd2 {[%clk 0:00:31.2]} 36. Be4 {[%clk
0:01:09.3]} 36... Bxb3 {[%clk 0:00:29.5]} 37. Kf3 {[%clk 0:01:01]} 37... a5
{[%clk 0:00:29.8]} 38. Rb1 {[%clk 0:00:56.6]} 38... a4 {[%clk 0:00:29]} 39. c4
{[%clk 0:00:55.9]} 39... Bc5 {[%clk 0:00:24.8]} 40. Bd5 {[%clk 0:00:56.5]} 40...
a3 {[%clk 0:00:23]} 41. Rxb3 {[%clk 0:00:54.4]} 41... a2 {[%clk 0:00:23.2]} 42.
Rb7 {[%clk 0:00:55.9]} 42... a1=Q {[%clk 0:00:23.2]} 43. Rxf7+ {[%clk
0:00:56.8]} 43... Kh8 {[%clk 0:00:23.6]} 44. Rc7 {[%clk 0:00:52.3]} 44... Bxe3
{[%clk 0:00:22.7]} 45. Rc8+ {[%clk 0:00:52.9]} 45... Kg7 {[%clk 0:00:22.6]} 46.
Rc7+ {[%clk 0:00:53.8]} 46... Kf6 {[%clk 0:00:23.7]} 47. fxe3 {[%clk 0:00:53.7]}
47... Qf1+ {[%clk 0:00:23.3]} 48. Ke4 {[%clk 0:00:54.8]} 48... Qg2+ {[%clk
0:00:21.5]} 49. Kf4 {[%clk 0:00:53.5]} 49... Rf2+ {[%clk 0:00:20.8]} 50. Bf3
{[%clk 0:00:53.9]} 50... Qxf3# {[%clk 0:00:21.3]} 0-1

[Event "*** Titled Tuesday Blitz"]
[Site "Chess.com"]
[Date "2018.05.01"]
[Round "10"]
[White "JozefKneht"]
[Black "dhanushbharadwaj"]
[Result "1-0"]
[WhiteElo "2396"]
[BlackElo "2504"]
[TimeControl "180+2"]
[EndTime "15:13:16 PDT"]
[Termination "JozefKneht won by resignation"]

1. e4 {[%clk 0:03:01.9]} 1... c6 {[%clk 0:02:57.3]} 2. d4 {[%clk 0:03:01.3]}
2... d5 {[%clk 0:02:56.1]} 3. Nc3 {[%clk 0:03:03.2]} 3... dxe4 {[%clk
0:02:51.9]} 4. Nxe4 {[%clk 0:03:05.1]} 4... Bf5 {[%clk 0:02:51.6]} 5. Ng3 {[%clk
0:03:04.4]} 5... Bg6 {[%clk 0:02:52.7]} 6. h4 {[%clk 0:03:05.8]} 6... h6 {[%clk
0:02:53.6]} 7. Nf3 {[%clk 0:03:07.1]} 7... e6 {[%clk 0:02:53.8]} 8. Ne5 {[%clk
0:03:06.3]} 8... Bh7 {[%clk 0:02:53.3]} 9. Bd3 {[%clk 0:03:07.8]} 9... Bxd3
{[%clk 0:02:52.2]} 10. Qxd3 {[%clk 0:03:09.7]} 10... Nf6 {[%clk 0:02:51.4]} 11.
Bd2 {[%clk 0:03:02]} 11... Nbd7 {[%clk 0:02:50]} 12. Qe2 {[%clk 0:03:01.9]}
12... Be7 {[%clk 0:02:49.4]} 13. O-O-O {[%clk 0:03:01.4]} 13... Qc7 {[%clk
0:02:45.5]} 14. f4 {[%clk 0:02:56.5]} 14... Rf8 {[%clk 0:02:29.4]} 15. f5 {[%clk
0:02:46.3]} 15... O-O-O {[%clk 0:02:25.7]} 16. fxe6 {[%clk 0:02:46.4]} 16...
fxe6 {[%clk 0:02:27.2]} 17. Ng6 {[%clk 0:02:44.4]} 17... Qxg3 {[%clk 0:02:12.9]}
18. Nxe7+ {[%clk 0:02:43]} 18... Kb8 {[%clk 0:02:10.2]} 19. Qxe6 {[%clk
0:02:36.4]} 19... Nd5 {[%clk 0:02:01.4]} 20. Nxd5 {[%clk 0:02:33.2]} 20... cxd5
{[%clk 0:01:59.4]} 21. Qxd5 {[%clk 0:02:34.1]} 21... Nb6 {[%clk 0:01:58.6]} 22.
Qe5+ {[%clk 0:02:30.4]} 22... Qxe5 {[%clk 0:01:58.8]} 23. dxe5 {[%clk
0:02:31.3]} 23... Rf2 {[%clk 0:02:00.2]} 24. g3 {[%clk 0:02:25.4]} 24... Nc4
{[%clk 0:01:57.5]} 25. Bf4 {[%clk 0:02:23.8]} 25... Rc8 {[%clk 0:01:55.7]} 26.
e6+ {[%clk 0:02:20.2]} 26... Ka8 {[%clk 0:01:57]} 27. Rhe1 {[%clk 0:02:02]}
27... Na3 {[%clk 0:00:47.5]} 28. Rd2 {[%clk 0:01:58]} 28... Rxd2 {[%clk
0:00:41.3]} 29. Kxd2 {[%clk 0:01:57.9]} 29... Nc4+ {[%clk 0:00:43.2]} 30. Kc1
{[%clk 0:01:57.1]} 30... Re8 {[%clk 0:00:36.5]} 31. b3 {[%clk 0:01:52.8]} 31...
Nb6 {[%clk 0:00:36.7]} 32. c4 {[%clk 0:01:54.1]} 32... a6 {[%clk 0:00:37.3]} 33.
Kc2 {[%clk 0:01:54.6]} 33... Nc8 {[%clk 0:00:37.6]} 34. Kc3 {[%clk 0:01:55]}
34... Ne7 {[%clk 0:00:39.1]} 35. Kd4 {[%clk 0:01:55.8]} 35... Nc6+ {[%clk
0:00:40.2]} 36. Kc3 {[%clk 0:01:52.7]} 36... b5 {[%clk 0:00:40.6]} 37. cxb5
{[%clk 0:01:50.9]} 37... axb5 {[%clk 0:00:42.5]} 38. a3 {[%clk 0:01:51.8]} 38...
Kb7 {[%clk 0:00:42.6]} 39. Bd6 {[%clk 0:01:52.1]} 39... Kb6 {[%clk 0:00:43.6]}
40. b4 {[%clk 0:01:52.3]} 40... Nd8 {[%clk 0:00:43.8]} 41. Bc5+ {[%clk
0:01:51.6]} 41... Kc6 {[%clk 0:00:44.7]} 42. e7 {[%clk 0:01:53.1]} 42... Nb7
{[%clk 0:00:45.6]} 43. Kd4 {[%clk 0:01:51]} 43... Kd7 {[%clk 0:00:41.1]} 44. Kd5
{[%clk 0:01:50.3]} 44... Ra8 {[%clk 0:00:40.3]} 45. Re3 {[%clk 0:01:48.9]} 45...
g5 {[%clk 0:00:36.8]} 46. h5 {[%clk 0:01:47.4]} 46... Rc8 {[%clk 0:00:31]} 47.
g4 {[%clk 0:01:47.4]} 47... Re8 {[%clk 0:00:29.9]} 48. Re6 {[%clk 0:01:46.2]}
48... Ra8 {[%clk 0:00:28.7]} 49. Rxh6 {[%clk 0:01:44.2]} 49... Nxc5 {[%clk
0:00:28.7]} 50. bxc5 {[%clk 0:01:44.3]} 50... Rxa3 {[%clk 0:00:24.9]} 51. c6+
{[%clk 0:01:44.2]} 51... Kxe7 {[%clk 0:00:24.9]} 52. Rh7+ {[%clk 0:01:45.2]}
52... Kd8 {[%clk 0:00:25.3]} 53. Kc5 {[%clk 0:01:44.7]} 53... Ra4 {[%clk
0:00:18.2]} 54. Rg7 {[%clk 0:01:42.1]} 54... Rxg4 {[%clk 0:00:18.6]} 55. h6
{[%clk 0:01:43.2]} 55... Rg1 {[%clk 0:00:08.4]} 56. h7 {[%clk 0:01:43.9]} 56...
Rc1+ {[%clk 0:00:08.2]} 57. Kb6 {[%clk 0:01:44.2]} 1-0

[Event "*** Titled Tuesday Blitz"]
[Site "Chess.com"]
[Date "2018.05.01"]
[Round "10"]
[White "AnishGiri"]
[Black "Alexander_Moskalenko"]
[Result "1-0"]
[WhiteElo "2874"]
[BlackElo "2761"]
[TimeControl "180+2"]
[EndTime "15:13:20 PDT"]
[Termination "AnishGiri won by resignation"]

1. e4 {[%clk 0:03:01.9]} 1... c5 {[%clk 0:02:59.2]} 2. Nf3 {[%clk 0:03:02.9]}
2... d6 {[%clk 0:02:58.4]} 3. d4 {[%clk 0:03:03.5]} 3... cxd4 {[%clk 0:03:00.3]}
4. Nxd4 {[%clk 0:03:05]} 4... Nf6 {[%clk 0:03:00.3]} 5. Nc3 {[%clk 0:03:06.6]}
5... a6 {[%clk 0:03:02.2]} 6. Be2 {[%clk 0:03:07.8]} 6... g6 {[%clk 0:03:00.6]}
7. Be3 {[%clk 0:03:07.2]} 7... Bg7 {[%clk 0:03:00.2]} 8. Qd2 {[%clk 0:03:03.4]}
8... Nc6 {[%clk 0:02:51.5]} 9. f3 {[%clk 0:02:59.3]} 9... Bd7 {[%clk 0:02:50.3]}
10. O-O-O {[%clk 0:02:57.3]} 10... O-O {[%clk 0:02:49.3]} 11. Kb1 {[%clk
0:02:52.7]} 11... b5 {[%clk 0:02:48.7]} 12. Nxc6 {[%clk 0:02:40.2]} 12... Bxc6
{[%clk 0:02:45.5]} 13. Bh6 {[%clk 0:02:42.1]} 13... Bxh6 {[%clk 0:02:34.5]} 14.
Qxh6 {[%clk 0:02:42.7]} 14... b4 {[%clk 0:02:36.4]} 15. Nd5 {[%clk 0:02:42.7]}
15... Bxd5 {[%clk 0:02:36.6]} 16. exd5 {[%clk 0:02:44.2]} 16... a5 {[%clk
0:02:05.8]} 17. Bc4 {[%clk 0:02:27.8]} 17... Qc7 {[%clk 0:01:58.1]} 18. Rd4
{[%clk 0:02:26.7]} 18... a4 {[%clk 0:01:55.6]} 19. Rhd1 {[%clk 0:02:23.6]} 19...
Rfc8 {[%clk 0:01:54.5]} 20. Qd2 {[%clk 0:02:15.1]} 20... Qb6 {[%clk 0:01:52.5]}
21. g4 {[%clk 0:02:06.9]} 21... Rab8 {[%clk 0:01:45.1]} 22. g5 {[%clk
0:02:03.7]} 22... Nh5 {[%clk 0:01:44.2]} 23. b3 {[%clk 0:01:30.7]} 23... Qa7
{[%clk 0:01:44.2]} 24. Re4 {[%clk 0:01:27.8]} 24... Rc7 {[%clk 0:01:44.9]} 25.
Qe3 {[%clk 0:01:24.9]} 25... axb3 {[%clk 0:01:34.4]} 26. cxb3 {[%clk 0:01:24.3]}
26... Qxe3 {[%clk 0:01:32.4]} 27. Rxe3 {[%clk 0:01:25.3]} 27... f6 {[%clk
0:01:34.3]} 28. h4 {[%clk 0:01:23.4]} 28... Rbb7 {[%clk 0:01:29.9]} 29. Rd4
{[%clk 0:01:16.9]} 29... Kf7 {[%clk 0:01:28.7]} 30. f4 {[%clk 0:01:16.3]} 30...
Ng7 {[%clk 0:01:25.4]} 31. Rde4 {[%clk 0:01:11.7]} 31... Nf5 {[%clk 0:01:25.5]}
32. Rh3 {[%clk 0:01:12.8]} 32... h5 {[%clk 0:01:09.9]} 33. gxh6 {[%clk
0:01:13.7]} 33... Nxh6 {[%clk 0:01:10.8]} 34. h5 {[%clk 0:01:15.1]} 34... Ng4
{[%clk 0:00:59.4]} 35. hxg6+ {[%clk 0:00:59.6]} 35... Kxg6 {[%clk 0:01:01.3]}
36. Re6 {[%clk 0:00:51.4]} 36... Kf5 {[%clk 0:00:54.4]} 37. Rf3 {[%clk
0:00:43.4]} 37... Rxc4 {[%clk 0:00:46.7]} 38. bxc4 {[%clk 0:00:43.9]} 38... Rc7
{[%clk 0:00:48.6]} 39. Kb2 {[%clk 0:00:42.5]} 39... Rxc4 {[%clk 0:00:49.5]} 40.
Rxe7 {[%clk 0:00:41.7]} 40... Rd4 {[%clk 0:00:45.1]} 41. Kb3 {[%clk 0:00:41.8]}
41... Nh2 {[%clk 0:00:44.8]} 42. Rh3 {[%clk 0:00:39.7]} 42... Ng4 {[%clk
0:00:42.1]} 43. Rd7 {[%clk 0:00:33.8]} 43... Rxd5 {[%clk 0:00:41.9]} 44. Kxb4
{[%clk 0:00:35.1]} 44... Kxf4 {[%clk 0:00:43]} 45. a4 {[%clk 0:00:34.1]} 45...
Ne5 {[%clk 0:00:37.4]} 46. Rc7 {[%clk 0:00:34.4]} 46... Rd1 {[%clk 0:00:35.4]}
47. a5 {[%clk 0:00:32.7]} 47... d5 {[%clk 0:00:36.4]} 48. a6 {[%clk 0:00:32.5]}
48... Ra1 {[%clk 0:00:26.6]} 49. Ra3 {[%clk 0:00:33.2]} 49... Nc4 {[%clk
0:00:28.5]} 50. Rxa1 {[%clk 0:00:32.9]} 1-0